fUST/lending_fUST_20250310
["ID","MTS","AMOUNT","RATE_DAILY","PERIOD"]
[355759984,1741540246823,-1923.18,0.00048219,120]
[355759985,1741540246834,-500.0,0.00048219,120]
[355759986,1741540246844,-500.0,0.00048219,2]
[355759987,1741540246854,-643.76,0.00048219,120]
[355759988,1741540246863,-12786.61,0.00048219,2]
[355759989,1741540246873,-500.0,0.00048219,120]
[355759990,1741540246888,-500.0,0.00048219,120]
[355759991,1741540246897,-590.76,0.00048219,120]
[355759992,1741540246908,-740.75,0.00048219,120]
[355759993,1741540246918,-1000.0,0.00048219,2]
[355759994,1741540246929,-501.88,0.00048219,120]
[355759995,1741540246939,-500.0,0.00048219,120]
[355759996,1741540247054,-500.0,0.00048247,6]
[355759997,1741540247064,-151.0,0.00048247,120]
[355759998,1741540247073,-210.173261,0.00048247,120]
[355759999,1741540247083,-20000.0,0.000483,120]
[355760000,1741540247093,-151.0,0.000483,120]
[355760001,1741540247103,-151.0,0.000483,120]
[355760002,1741540247113,-9875.79839133,0.000483,2]
[355760003,1741540247123,-600.0,0.00048325,120]
[355760004,1741540247135,-162.0,0.00048356,90]
[355760005,1741540247146,-200.67557676,0.00048373,10]
[355760006,1741540247157,-2000.0,0.0004838,120]
[355760007,1741540247167,-201.07026636,0.00048382,14]
[355760008,1741540247179,-500.0,0.00048384,6]
[355760009,1741540247190,-403.3453858,0.00048391,30]
[355760010,1741540247201,-67202.4281073,0.000484,120]
[355760011,1741540247399,-165.81687831,0.00046465,2]
[355760012,1741540247412,-436.3653766,0.00046575,120]
[355760013,1741540247920,-72.58405719,0.00041,14]
[355760014,1741540247991,-91.41594281,0.00041,14]
[355760015,1741540248003,-500.0,0.00046573,10]
[355760016,1741540248016,-63.6346234,0.00046575,120]
[355760017,1741540248028,-500.0,0.00046575,120]
[355760018,1741540248039,-500.0,0.00047123,120]
[355760019,1741540248051,-398.0,0.0004758,2]
[355760020,1741540248062,-500.0,0.00047671,120]
[355760021,1741540248072,-500.0,0.00048219,120]
[355760022,1741540248083,-4984.98945554,0.000484,120]
[355760023,1741540248149,-3075.0,0.000484,120]
[355760024,1741540248162,-206267.38236232,0.000484,120]
[355760025,1741540248172,-20000.0,0.000484,120]
[355760026,1741540248183,-295.61698,0.000484,10]
[355760027,1741540248196,-265.954803,0.000484,120]
[355760028,1741540248206,-151.0,0.000484,120]
[355760029,1741540248217,-151.0,0.000484,120]
[355760030,1741540248230,-301.341209,0.000484,120]
[355760031,1741540248245,-165.675975,0.000484,120]
[355760032,1741540248258,-165.675975,0.000484,120]
[355760033,1741540248271,-151.0,0.000484,120]
[355760034,1741540248282,-151.0,0.000484,120]
[355760035,1741540248295,-151.0,0.000484,120]
[355760036,1741540248307,-151.0,0.000484,120]
[355760037,1741540248318,-150.0,0.000484,2]
[355760038,1741540248330,-151.0,0.000484,120]
[355760039,1741540248342,-151.0,0.000484,120]
[355760040,1741540248355,-151.0,0.000484,120]
[355760041,1741540248368,-2734.35609173,0.00048466,30]
[355760042,1741540248381,-160.0,0.00048469,3]
[355760043,1741540248392,-151.0,0.00048469,2]
[355760044,1741540248405,-500.0,0.00048473,10]
[355760045,1741540248420,-150.0,0.00048473,10]
[355760046,1741540248432,-151.6525177,0.00048473,5]
[355760047,1741540248444,-150.0,0.00048473,10]
[355760048,1741540248456,-200.0,0.00048484,120]
[355760049,1741540248468,-716.21,0.00048493,60]
[355760050,1741540248480,-44292.1401989,0.000485,120]
[355760051,1741540248587,-823.8,0.000485,120]
[355760052,1741540248601,-511.68,0.000485,120]
[355760058,1741541229125,-316.78547293,0.00031104,2]
[355760060,1741541253103,-196.864747,0.00030129,2]
[355760061,1741541253128,-83.21452707,0.00031104,2]
[355760062,1741541253155,-500.0,0.00031105,2]
[355760063,1741541253182,-500.0,0.00031105,2]
[355760064,1741541253211,-500.0,0.00031105,2]
[355760065,1741541253235,-500.0,0.00031105,2]
[355760066,1741541253261,-500.0,0.00031105,2]
[355760067,1741541253287,-638.25055831,0.00031105,2]
[355760068,1741541253318,-500.0,0.00031105,2]
[355760069,1741541253344,-199.30813285,0.00031105,2]
[355760070,1741541253372,-500.0,0.00031105,2]
[355760071,1741541253399,-500.0,0.00031105,2]
[355760072,1741541253425,-475.57745531,0.00031105,2]
[355760073,1741541270005,681.32620261,0.00029159,2]
[355760074,1741541294035,867.6408575,0.00029,2]
[355760075,1741541311882,679.84817558,0.0001711,2]
[355760076,1741541313934,665.87243226,0.0001,7]
[355760077,1741541314033,338.13267927,0.00017,2]
[355760078,1741541320536,2080.52183566,0.00027,2]
[355760086,1741541348731,417.93006918,0.00029005,2]
[355760087,1741541350089,-250.0,0.00030226,2]
[355760088,1741541361076,-299.86534352,0.0003099,2]
[355760089,1741541361108,-500.0,0.00031104,2]
[355760090,1741541361139,-500.0,0.00031104,2]
[355760091,1741541361164,-500.0,0.00031104,2]
[355760092,1741541361196,-500.0,0.00031104,2]
[355760093,1741541361225,-500.0,0.00031104,2]
[355760094,1741541361254,-500.0,0.00031104,2]
[355760095,1741541361283,-500.0,0.00031104,2]
[355760096,1741541361311,-500.0,0.00031104,2]
[355760097,1741541361339,-500.0,0.00031104,2]
[355760098,1741541361368,-175.92652221,0.00031104,2]
[355760099,1741541361396,-500.0,0.00031104,2]
[355760100,1741541361424,-500.0,0.00031104,2]
[355760101,1741541361454,-500.0,0.00031104,2]
[355760102,1741541361483,-500.0,0.00031104,2]
[355760103,1741541361511,-185.80534605,0.00031104,2]
[355760104,1741541361538,-500.0,0.00031104,2]
[355760105,1741541361567,-500.0,0.00031104,2]
[355760106,1741541361595,-500.0,0.00031104,2]
[355760107,1741541361623,-310.85686457,0.00031104,2]
[355760108,1741541361650,-421.23122107,0.00031104,2]
[355760109,1741541361679,-500.0,0.00031104,2]
[355760110,1741541361707,-500.0,0.00031104,2]
[355760111,1741541361736,-500.0,0.00031104,2]
[355760112,1741541361765,-500.0,0.00031104,2]
[355760113,1741541361792,-500.0,0.00031104,2]
[355760114,1741541361816,-500.0,0.00031104,2]
[355760115,1741541361839,-500.0,0.00031104,2]
[355760116,1741541361862,-500.0,0.00031104,2]
[355760117,1741541362061,-500.0,0.00031104,2]
[355760118,1741541362085,-500.0,0.00031104,2]
[355760119,1741541362109,-500.0,0.00031104,2]
[355760120,1741541362132,-500.0,0.00031104,2]
[355760121,1741541362156,-500.0,0.00031104,2]
[355760122,1741541362180,-500.0,0.00031104,2]
[355760123,1741541362202,-500.0,0.00031104,2]
[355760124,1741541362225,-500.0,0.00031104,2]
[355760125,1741541362249,-500.0,0.00031104,2]
[355760126,1741541362274,-500.0,0.00031104,2]
[355760127,1741541362298,-500.0,0.00031104,2]
[355760128,1741541362321,-500.0,0.00031104,2]
[355760129,1741541362345,-500.0,0.00031104,2]
[355760130,1741541362368,-500.0,0.00031104,2]
[355760131,1741541362391,-250.0,0.00031104,2]
[355760132,1741541362413,-11106.71606983,0.00031106,2]
[355760133,1741541362473,-11808.66799545,0.00031106,2]
[355760134,1741541363152,-1984.61593472,0.00031106,2]
[355760135,1741541363177,-502.9585324,0.000312,5]
[355760136,1741541363200,-500.0,0.000312,2]
[355760137,1741541363221,-500.0,0.000312,5]
[355760138,1741541363241,-5402.1158471,0.0003152,2]
[355760139,1741541363265,-2283.1097957,0.000319,6]
[355760140,1741541363288,-2166.34059777,0.00032011,2]
[355760141,1741541363310,-9650.7158308,0.00032111,2]
[355760142,1741541363332,-2726.40110477,0.00032516,2]
[355760143,1741541363354,-352.59653131,0.000326,5]
[355760179,1741541432063,-147.40346869,0.000326,5]
[355760181,1741541432073,-364.8683053,0.00032616,2]
[355760183,1741541432082,-63.47822601,0.0003278,5]
[355760186,1741541432094,-436.52177399,0.0003278,5]
[355760188,1741541432103,-500.0,0.000335,5]
[355760189,1741541432113,-417.93006918,0.00034005,2]
[355760190,1741541432123,-1395.54815683,0.00035565,2]
[355760191,1741541432138,-647.969999,0.00035565,2]
[355760192,1741541432149,-122.82244188,0.00035565,2]
[355760193,1741541432158,-500.0,0.00035674,2]
[355760194,1741541432167,-245.00755812,0.00035889,2]
[355760223,1741541437909,-154.99244188,0.00035889,2]
[355760225,1741541437919,-336.028095,0.0003589,2]
[355760227,1741541437929,-160.0,0.00035895,2]
[355760229,1741541437938,-427.97589205,0.000362,98]
[355760231,1741541437947,-94.03749687,0.00036679,2]
[355760255,1741541440160,-423.16002039,0.00036679,2]
[355760256,1741541440173,-482.80248274,0.00036679,2]
[355760257,1741541440182,-187.31170512,0.00037209,15]
[355760258,1741541440192,-500.0,0.00037209,2]
[355760259,1741541440202,-500.0,0.00037209,2]
[355760260,1741541440212,-367.12312211,0.00037209,2]
[355760261,1741541440222,-500.0,0.00037209,2]
[355760262,1741541440231,-9785.6838006,0.0003721,2]
[355760263,1741541440244,-155.438525,0.00038122,5]
[355760264,1741541440253,-560.0,0.00038446,5]
[355760265,1741541440263,-417.93006918,0.00039005,2]
[355760266,1741541440273,-2166.34059771,0.00039118,2]
[355760267,1741541440283,-427.97589205,0.00039243,116]
[355760268,1741541440296,-500.0,0.0004,2]
[355760269,1741541440306,-783.0,0.00041185,5]
[355760270,1741541440315,-336.028095,0.00041211,2]
[355760271,1741541440326,-2166.34059771,0.00042672,28]
[355760272,1741541440336,-427.97589205,0.0004302,120]
[355760273,1741541440346,-500.0,0.00043835,120]
[355760274,1741541440356,-1097.0,0.00044118,5]
[355760276,1741541440366,-185.32,0.00044363,30]
[355760278,1741541440375,-154.43,0.00044373,30]
[355760279,1741541440385,-500.0,0.00044383,120]
[355760280,1741541440395,-761.3450049,0.00045,2]
[355760281,1741541440405,-196.864747,0.00045193,2]
[355760282,1741541440415,-500.0,0.00045205,60]
[355760283,1741541440425,-772.17,0.00045469,30]
[355760284,1741541440434,-500.0,0.00045479,60]
[355760285,1741541440444,-500.0,0.00045753,60]
[355760286,1741541440454,-1306.9216122,0.00046,8]
[355760287,1741541440464,-500.0,0.00046027,60]
[355760288,1741541440474,-7005.67187333,0.00046185,4]
[355760289,1741541440483,-628.0842249,0.00046185,4]
[355760290,1741541440495,-2750.0,0.00046224,30]
[355760291,1741541440505,-2166.34059771,0.00046225,28]
[355760292,1741541440514,-500.0,0.00046301,60]
[355760293,1741541440523,-1000.0,0.00046475,60]
[355760294,1741541440533,-2000.0,0.0004648,120]
[355760295,1741541440543,-336.028095,0.00046532,2]
[355760296,1741541440552,-500.0,0.00046564,120]
[355760297,1741541440561,-21017.01562,0.00046565,4]
[355760298,1741541440571,-1884.2526747,0.00046565,4]
[355760299,1741541440580,-500.0,0.00046573,10]
[355760300,1741541440590,-500.0,0.00046573,10]
[355760301,1741541440599,-500.0,0.00046573,10]
[355760302,1741541440609,-500.0,0.00046573,10]
[355760303,1741541440618,-500.0,0.00046573,10]
[355760304,1741541440634,-500.0,0.00046573,10]
[355760305,1741541440643,-500.0,0.00046573,10]
[355760306,1741541440653,-298.84061031,0.00046573,10]
[355760307,1741541440662,-500.0,0.00046573,10]
[355760308,1741541440671,-150.0,0.00046574,30]
[355760309,1741541440681,-500.0,0.00046575,15]
[355760310,1741541440690,-500.0,0.00046575,30]
[355760311,1741541440700,-500.0,0.00046575,120]
[355760312,1741541440709,-500.0,0.00046575,120]
[355760313,1741541440719,-500.0,0.00046575,120]
[355760314,1741541440729,-312.4464375,0.00046575,120]
[355760315,1741541440740,-516.94993709,0.00046575,120]
[355760316,1741541440750,-500.0,0.00046575,120]
[355760317,1741541440759,-500.0,0.00046575,120]
[355760318,1741541440769,-516.46,0.00046575,120]
[355760319,1741541440778,-500.0,0.00046575,120]
[355760320,1741541440787,-500.0,0.00046575,120]
[355760321,1741541440797,-500.0,0.00046575,120]
[355760322,1741541440807,-500.0,0.00046575,120]
[355760323,1741541440816,-500.0,0.00046575,120]
[355760324,1741541440826,-500.0,0.00046575,120]
[355760325,1741541440835,-508.25,0.00046575,120]
[355760326,1741541440844,-500.0,0.00046575,2]
[355760327,1741541440854,-500.0,0.00046575,120]
[355760328,1741541440863,-500.0,0.00046575,15]
[355760329,1741541440872,-500.0,0.00046575,120]
[355760330,1741541440882,-500.0,0.00046575,120]
[355760331,1741541440891,-500.0,0.00046575,120]
[355760332,1741541440900,-500.0,0.00046575,120]
[355760333,1741541440910,-500.0,0.00046575,120]
[355760334,1741541440919,-500.0,0.00046575,120]
[355760335,1741541440928,-500.0,0.00046575,120]
[355760336,1741541440937,-500.0,0.00046575,120]
[355760337,1741541440947,-500.0,0.00046575,120]
[355760338,1741541440957,-1134.33,0.00046575,2]
[355760339,1741541440967,-500.0,0.00046575,120]
[355760340,1741541440977,-500.0,0.00046575,120]
[355760341,1741541440987,-547.30937194,0.00046575,120]
[355760342,1741541441099,-391.94826509,0.00046575,120]
[355760343,1741541441111,-173.59236297,0.00046575,120]
[355760344,1741541441121,-500.0,0.00046575,120]
[355760345,1741541441131,-500.0,0.00046575,120]
[355760346,1741541441141,-500.0,0.00046575,120]
[355760347,1741541441150,-364.46128237,0.00046575,120]
[355760348,1741541441161,-135.53871763,0.00046575,120]
[355760349,1741541441171,-2549.7,0.00046575,120]
[355760350,1741541441181,-500.0,0.00046575,120]
[355760351,1741541441190,-505.81,0.00046575,120]
[355760352,1741541441199,-500.0,0.00046575,2]
[355760353,1741541441208,-500.0,0.00046575,120]
[355760354,1741541441218,-500.0,0.00046575,60]
[355760355,1741541441227,-500.0,0.00046575,120]
[355760356,1741541441238,-500.0,0.00046575,120]
[355760357,1741541441247,-442.05227036,0.00046575,120]
[355760358,1741541441256,-500.0,0.00046575,120]
[355760359,1741541441265,-500.0,0.00046575,120]
[355760360,1741541441275,-500.0,0.00046575,120]
[355760361,1741541441288,-500.0,0.00046575,120]
[355760362,1741541441298,-500.0,0.00046575,120]
[355760363,1741541441308,-535.53,0.00046575,120]
[355760364,1741541441318,-540.46056154,0.00046575,120]
[355760365,1741541441328,-500.0,0.00046575,120]
[355760366,1741541441338,-500.0,0.00046575,120]
[355760367,1741541441347,-500.0,0.00046575,120]
[355760368,1741541441358,-500.0,0.00046575,120]
[355760369,1741541441367,-500.0,0.00046575,120]
[355760370,1741541441377,-500.0,0.00046575,2]
[355760371,1741541441386,-500.0,0.00046575,120]
[355760372,1741541441395,-500.0,0.00046575,120]
[355760373,1741541441405,-500.0,0.00046575,120]
[355760374,1741541441414,-500.0,0.00046575,120]
[355760375,1741541441423,-500.0,0.00046575,120]
[355760376,1741541441432,-180.44570849,0.00046575,120]
[355760377,1741541441442,-500.0,0.00046575,120]
[355760378,1741541441451,-500.0,0.00046575,120]
[355760379,1741541441460,-500.0,0.00046575,120]
[355760380,1741541441469,-500.0,0.00046575,120]
[355760381,1741541441479,-857.94,0.00046575,120]
[355760382,1741541441491,-1975.69,0.00046575,120]
[355760383,1741541441500,-500.0,0.00046575,120]
[355760384,1741541441510,-500.0,0.00046575,120]
[355760385,1741541441520,-2700.54,0.00046575,120]
[355760386,1741541441529,-500.0,0.00046575,120]
[355760387,1741541441539,-822.17,0.00046575,120]
[355760388,1741541441549,-1276.94,0.00046575,120]
[355760389,1741541441558,-500.0,0.00046575,120]
[355760390,1741541441568,-500.0,0.00046575,120]
[355760391,1741541441577,-500.0,0.00046575,120]
[355760392,1741541441587,-500.0,0.00046575,120]
[355760393,1741541441597,-5673.07,0.00046575,120]
[355760394,1741541441607,-1220.42,0.00046575,120]
[355760395,1741541441616,-803.67,0.00046575,120]
[355760396,1741541441625,-500.0,0.00046575,120]
[355760397,1741541441635,-730.45,0.00046575,120]
[355760398,1741541441644,-20.53106512,0.00046575,120]
[355760463,1741541443014,-3110.86,0.00046565,10]
[355760465,1741541443024,-479.46893488,0.00046575,120]
[355760467,1741541443034,-500.0,0.00046575,120]
[355760469,1741541443044,-4595.19785176,0.00046575,7]
[355760473,1741541443070,-5264.71726476,0.00046575,7]
[355760613,1741541445941,-4474.87245798,0.00046575,7]
[355760615,1741541446000,-16039.3124255,0.00046575,7]
[355760616,1741541446010,-500.0,0.00046575,120]
[355760617,1741541446020,-500.0,0.00046575,120]
[355760618,1741541446030,-500.0,0.00046575,120]
[355760619,1741541446039,-500.0,0.00046575,120]
[355760620,1741541446049,-500.0,0.00046575,120]
[355760621,1741541446059,-901.33,0.00046575,120]
[355760622,1741541446069,-500.0,0.00046575,120]
[355760623,1741541446079,-500.0,0.00046575,120]
[355760624,1741541446088,-623.76,0.00046575,120]
[355760625,1741541446098,-503.27,0.00046575,120]
[355760626,1741541446107,-3688.24,0.00046575,120]
[355760627,1741541446116,-500.0,0.00046575,120]
[355760628,1741541446126,-877.32,0.00046575,120]
[355760629,1741541446135,-500.0,0.00046575,120]
[355760630,1741541446145,-1499.11,0.00046575,60]
[355760631,1741541446155,-934.5,0.00046575,120]
[355760632,1741541446164,-500.0,0.00046575,120]
[355760633,1741541446174,-500.0,0.00046575,120]
[355760634,1741541446184,-933.21,0.00046575,120]
[355760635,1741541446194,-500.0,0.00046575,120]
[355760636,1741541446204,-500.0,0.00046575,120]
[355760637,1741541446213,-500.0,0.00046575,120]
[355760638,1741541446223,-500.0,0.00046575,120]
[355760639,1741541446232,-500.0,0.00046575,120]
[355760640,1741541446243,-500.0,0.00046575,120]
[355760641,1741541446253,-500.0,0.00046575,120]
[355760642,1741541446262,-500.0,0.00046575,120]
[355760643,1741541446272,-175.40111555,0.00046575,120]
[355760644,1741541446283,-500.0,0.00046575,120]
[355760645,1741541446296,-500.0,0.00046575,120]
[355760646,1741541446305,-500.0,0.00046575,120]
[355760647,1741541446314,-442.01064472,0.00046575,120]
[355760648,1741541446326,-500.0,0.00046575,120]
[355760649,1741541446336,-1202.72,0.00046575,120]
[355760650,1741541446346,-500.0,0.00046575,120]
[355760651,1741541446356,-500.0,0.00046575,120]
[355760652,1741541446367,-500.0,0.00046575,120]
[355760653,1741541446377,-574.31572062,0.00046575,120]
[355760654,1741541446387,-500.0,0.00046575,120]
[355760655,1741541446397,-500.0,0.00046575,120]
[355760656,1741541446407,-500.0,0.00046575,120]
[355760657,1741541446417,-1762.92,0.00046575,120]
[355760658,1741541446426,-500.0,0.00046575,120]
[355760659,1741541446436,-590.12,0.00046575,120]
[355760660,1741541446446,-500.0,0.00046575,120]
[355760661,1741541446456,-500.0,0.00046575,120]
[355760662,1741541446466,-500.0,0.00046575,120]
[355760663,1741541446475,-541.53,0.00046575,120]
[355760664,1741541446485,-500.0,0.00046575,120]
[355760665,1741541446499,-500.0,0.00046575,120]
[355760666,1741541446509,-500.0,0.00046575,120]
[355760667,1741541446518,-500.0,0.00046575,2]
[355760668,1741541446528,-11721.06,0.00046575,2]
[355760669,1741541446538,-679.02,0.00046575,120]
[355760670,1741541446548,-411.31365342,0.00046575,120]
[355760671,1741541446558,-500.0,0.00046575,120]
[355760672,1741541446568,-500.0,0.00046575,120]
[355760673,1741541446578,-500.0,0.00046575,120]
[355760674,1741541446587,-500.0,0.00046575,120]
[355760675,1741541446597,-500.0,0.00046575,120]
[355760676,1741541446611,-1000.0,0.00046575,2]
[355760677,1741541446620,-500.0,0.00046575,2]
[355760678,1741541446629,-589.911196,0.00046575,2]
[355760679,1741541446638,-588.58,0.000466,30]
[355760680,1741541446648,-500.0,0.00046681,120]
[355760681,1741541446657,-1500.0,0.00046698,2]
[355760682,1741541446666,-427.97589205,0.00046798,120]
[355760683,1741541446675,-500.0,0.00046849,60]
[355760684,1741541446684,-154.22678559,0.00046849,120]
[355760685,1741541446693,-500.0,0.00046955,120]
[355760686,1741541446702,-1701.999999,0.00047,2]
[355760687,1741541446710,-919.41983286,0.0004704,2]
[355760688,1741541446720,-14011.3437467,0.00047113,4]
[355760689,1741541446730,-1256.1684498,0.00047113,4]
[355760690,1741541446740,-516.46,0.00047123,120]
[355760691,1741541446749,-500.0,0.00047123,120]
[355760692,1741541446759,-500.0,0.00047123,120]
[355760693,1741541446769,-500.0,0.00047123,120]
[355760694,1741541446778,-508.25,0.00047123,120]
[355760695,1741541446787,-500.0,0.00047123,120]
[355760696,1741541446796,-500.0,0.00047123,15]
[355760697,1741541446806,-500.0,0.00047123,120]
[355760698,1741541446816,-1134.33,0.00047123,2]
[355760699,1741541446826,-500.0,0.00047123,120]
[355760700,1741541446836,-500.0,0.00047123,120]
[355760701,1741541446846,-1112.85,0.00047123,120]
[355760702,1741541446856,-500.0,0.00047123,120]
[355760703,1741541446866,-500.0,0.00047123,120]
[355760704,1741541446877,-2549.7,0.00047123,120]
[355760705,1741541446887,-535.69838918,0.00047123,120]
[355760706,1741541446897,-505.81,0.00047123,120]
[355760707,1741541446907,-500.0,0.00047123,60]
[355760708,1741541446918,-500.0,0.00047123,120]
[355760709,1741541446927,-500.0,0.00047123,120]
[355760710,1741541446938,-636.54823735,0.00047123,120]
[355760711,1741541446948,-500.0,0.00047123,120]
[355760712,1741541446958,-535.53,0.00047123,120]
[355760713,1741541446968,-598.16331308,0.00047123,120]
[355760714,1741541446979,-500.0,0.00047123,120]
[355760715,1741541446989,-266.15493952,0.00047123,120]
[355760716,1741541446999,-409.66677847,0.00047123,120]
[355760717,1741541447009,-500.0,0.00047123,120]
[355760718,1741541447018,-500.0,0.00047123,120]
[355760719,1741541447028,-500.0,0.00047123,120]
[355760720,1741541447038,-500.0,0.00047123,120]
[355760721,1741541447048,-500.0,0.00047123,120]
[355760722,1741541447058,-857.94,0.00047123,120]
[355760723,1741541447068,-1975.69,0.00047123,120]
[355760724,1741541447078,-500.0,0.00047123,120]
[355760725,1741541447088,-500.0,0.00047123,120]
[355760726,1741541447098,-345.89499645,0.00047123,120]
[355760727,1741541536655,500.0,0.00028,10]
[355760728,1741541537007,500.0,0.00028,10]
[355760729,1741541537396,500.0,0.00028,10]
[355760730,1741541555427,883.24840893,0.0003,3]
[355760731,1741541703132,7540.96603758,0.0002,2]
[355760732,1741542249053,-689.96304698,0.00032799,2]
[355760733,1741542249080,-964.41760768,0.00032899,2]
[355760734,1741542249109,-500.0,0.00033,2]
[355760735,1741542249137,-500.0,0.00033,2]
[355760736,1741542249304,-500.0,0.00033,2]
[355760737,1741542249334,-500.0,0.00033,2]
[355760738,1741542249364,-2207.00613594,0.000349,7]
[355760739,1741542249392,-162.4425,0.00035,5]
[355760740,1741542249420,-200.116326,0.0003577,120]
[355760741,1741542249451,-317.192984,0.0003589,2]
[355760742,1741542249481,-3077.02267,0.00038006,2]
[355760743,1741542249508,-264.27366,0.00038022,2]
[355760744,1741542249535,-171.35,0.00038022,2]
[355760745,1741542249565,-642.5338546,0.0003813,2]
[355760746,1741542249594,-500.0,0.00038965,2]
[355760747,1741542249621,-317.192984,0.00041211,2]
[355760748,1741542249652,-500.0,0.00045011,2]
[355760749,1741542249682,-500.0,0.00045011,2]
[355760750,1741542249715,-500.0,0.00045011,2]
[355760751,1741542249747,-500.0,0.00045011,2]
[355760752,1741542249778,-500.0,0.00045011,2]
[355760753,1741542249810,-500.0,0.00045011,2]
[355760754,1741542249841,-500.0,0.00045011,2]
[355760755,1741542249872,-500.0,0.00045011,2]
[355760756,1741542249902,-500.0,0.00045011,2]
[355760757,1741542249934,-500.0,0.00045011,2]
[355760758,1741542249971,-500.0,0.00045011,2]
[355760759,1741542250002,-500.0,0.00045011,2]
[355760760,1741542250033,-500.0,0.00045011,2]
[355760761,1741542250062,-500.0,0.00045011,2]
[355760762,1741542250092,-500.0,0.00045011,2]
[355760763,1741542250124,-606.00658753,0.00045011,2]
[355760764,1741542250153,-600.0,0.00045011,2]
[355760765,1741542250184,-500.0,0.00045011,2]
[355760766,1741542250217,-500.0,0.00045011,2]
[355760767,1741542250245,-500.0,0.00045011,2]
[355760768,1741542250274,-500.0,0.00045011,2]
[355760769,1741542250303,-500.0,0.00045011,2]
[355760770,1741542250332,-500.0,0.00045011,2]
[355760771,1741542250361,-500.0,0.00045011,2]
[355760772,1741542250390,-500.0,0.00045011,2]
[355760773,1741542250420,-500.0,0.00045011,2]
[355760774,1741542250451,-500.0,0.00045011,2]
[355760775,1741542250480,-500.0,0.00045011,2]
[355760776,1741542250509,-500.0,0.00045011,2]
[355760777,1741542250537,-500.0,0.00045011,2]
[355760778,1741542250571,-500.0,0.00045011,2]
[355760779,1741542250602,-500.0,0.00045011,2]
[355760780,1741542250633,-500.0,0.00045011,2]
[355760781,1741542250665,-500.0,0.00045011,2]
[355760782,1741542250694,-500.0,0.00045011,2]
[355760783,1741542250725,-500.0,0.00045011,2]
[355760784,1741542250756,-500.0,0.00045011,2]
[355760785,1741542250784,-500.0,0.00045011,2]
[355760786,1741542250814,-500.0,0.00045011,2]
[355760787,1741542250842,-500.0,0.00045011,2]
[355760788,1741542250872,-500.0,0.00045011,2]
[355760789,1741542250901,-500.0,0.00045011,2]
[355760790,1741542250930,-500.0,0.00045011,2]
[355760791,1741542250961,-500.0,0.00045011,2]
[355760792,1741542250990,-500.0,0.00045011,2]
[355760793,1741542251019,-500.0,0.00045011,2]
[355760794,1741542251048,-500.0,0.00045011,2]
[355760795,1741542251077,-500.0,0.00045011,2]
[355760796,1741542251105,-500.0,0.00045011,2]
[355760797,1741542251135,-500.0,0.00045011,2]
[355760798,1741542251169,-500.0,0.00045011,2]
[355760799,1741542251278,-160.60065876,0.00045011,2]
[355760800,1741542251325,-500.0,0.00045011,2]
[355760801,1741542251355,-500.0,0.00045011,2]
[355760802,1741542251384,-500.0,0.00045011,2]
[355760803,1741542251410,-376.0,0.00045012,2]